bitfinex-derivatives/quotes_ETHF0:USTF0_20260306
["timestamp","ask_amount","ask_price","bid_price","bid_amount"]
[1772792643076,1.00752999,2067.5,2067.1,0.97557509]
[1772792643282,1.01152261,2067.5,2067.1,0.97557509]
[1772792645191,0.00878124,2067.5,2067.1,0.97557509]
[1772792645387,1.00274137,2068.1,2067.2,0.94422973]
[1772792646092,1.24449137,2068.3,2067.6,0.94422973]
[1772792646287,1.24933514,2068.3,2067.4,0.94422973]
[1772792646487,1.00274137,2068.1,2067.4,0.94422973]
[1772792649488,1.00274137,2067.9,2067.0,0.94422973]
[1772792649793,1.00274137,2067.9,2067.2,0.94422973]
[1772792649990,1.00274137,2068.1,2067.4,0.94422973]
[1772792650594,1.00274137,2068.1,2067.5,1.59056478]
[1772792650784,0.24659377,2068.3,2068.0,0.94422973]
[1772792650785,0.00484377,2068.3,2068.0,0.94422973]
[1772792650987,1.00274137,2068.5,2068.0,0.94422973]
[1772792651991,1.00664721,2068.5,2068.0,0.94422973]
[1772792653695,0.00390584,2068.5,2068.0,0.94422973]
[1772792655597,1.00274137,2067.9,2067.1,0.94422973]
[1772792655798,1.00274137,2067.6,2067.1,0.94422973]
[1772792656491,1.00274137,2068.1,2067.1,0.94422973]
[1772792656700,1.00274137,2068.4,2067.1,0.94422973]
[1772792661302,1.00274137,2068.2,2067.1,0.94422973]
[1772792664002,1.00274137,2068.0,2067.1,0.94422973]
[1772792665713,1.00274137,2067.8,2067.1,0.94422973]
[1772792667312,1.00274137,2067.8,2066.9,0.94422973]
[1772792670014,1.00274137,2067.6,2066.9,0.94422973]
[1772792670218,1.00274137,2067.4,2066.7,0.00373876]
[1772792670420,1.00274137,2067.2,2066.5,0.94422973]
[1772792670716,1.00274137,2067.2,2066.0,7.46895811]
[1772792670717,1.00274137,2067.2,2066.0,0.94422973]
[1772792671311,1.00274137,2067.0,2066.0,0.94422973]
[1772792671620,1.00651244,2067.0,2066.0,0.95036993]
[1772792675816,0.00377107,2067.0,2066.0,3.19670403]
[1772792676015,0.95562476,2067.7,2066.2,1.25068724]
[1772792676319,0.95562476,2067.7,2066.7,1.00869724]
[1772792676620,0.95562476,2067.7,2066.8,1.00869724]
[1772792677016,0.96060202,2067.7,2066.8,1.00869724]
[1772792677412,0.96060202,2067.7,2066.9,1.00869724]
[1772792677619,0.00497726,2067.7,2066.9,1.00869724]
[1772792682624,0.00497726,2067.7,2066.9,3.47669724]
[1772792682820,0.00497726,2067.7,2067.0,1.00869724]
[1772792684922,0.95562476,2068.1,2067.0,1.00869724]
[1772792685925,0.9612706,2068.1,2067.0,1.00869724]
[1772792690332,0.9612706,2068.1,2067.2,1.00869724]
[1772792701540,0.97844769,2067.9,2067.2,1.00869724]
[1772792701740,0.97844769,2067.7,2066.9,1.05384082]
[1772792710245,0.97844769,2067.4,2066.6,1.05384082]
[1772792710543,1.22030769,2067.4,2066.6,1.05384082]
[1772792712344,0.97844769,2067.6,2066.6,1.05384082]
[1772792713548,0.9293891,2067.4,2066.6,1.05384082]
[1772792717051,0.91882767,2067.2,2066.6,1.05384082]
[1772792718254,0.91898331,2067.0,2066.3,1.05384082]
[1772792720452,0.9045151,2067.4,2066.3,1.05384082]
[1772792728364,0.9045151,2067.4,2066.4,0.97256509]
[1772792731373,0.9045151,2067.4,2066.5,0.97256509]
[1772792732367,0.9045151,2067.4,2066.5,3.44056509]
[1772792732671,0.9045151,2067.4,2066.6,0.96217949]
[1772792740680,0.94393149,2067.3,2066.6,0.96217949]
[1772792742086,0.94419287,2067.5,2066.7,0.96217949]
[1772792742381,0.94419287,2067.3,2066.7,0.96217949]
[1772792743582,0.9101542,2067.1,2066.5,0.96217949]
[1772792744284,1.15215982,2067.3,2066.5,0.96217949]
[1772792744485,0.91027982,2067.2,2066.5,0.96217949]
[1772792749984,0.95346434,2067.3,2066.5,0.96217949]
[1772792750187,37.38138915,2068.5,2066.4,1.58905479]
[1772792750188,1.05830382,2068.6,2067.2,0.24187]
[1772792750488,0.93079108,2069.2,2067.7,0.00153969]
[1772792750489,1.05830382,2068.4,2067.7,0.00153969]
[1772792750889,1.05830382,2068.4,2068.0,0.00153969]
[1772792751087,1.05830382,2068.4,2068.0,0.00742667]
[1772792751286,1.06283735,2068.4,2068.1,0.34381197]
[1772792751790,8.08416952,2068.4,2068.1,0.34381197]
[1772792752090,1.21395019,2068.3,2067.9,0.0285031]
[1772792752287,0.83627019,2068.3,2067.9,0.0285031]
[1772792752483,5.11255258,2068.2,2067.8,0.4061831]
[1772792752888,1.05452624,2068.1,2067.8,0.4061831]
[1772792753082,1.05452624,2068.1,2067.8,0.00401519]
[1772792753289,0.00453353,2068.4,2067.6,0.02912884]
[1772792753290,5.28291542,2068.0,2067.6,0.02912884]
[1772792753486,1.22488908,2068.0,2067.6,0.02912884]
[1772792754291,1.22488908,2068.0,2067.6,0.03363417]
[1772792754493,1.21236617,2067.9,2067.6,0.03363417]
[1772792754790,1.21236617,2067.9,2067.3,14.7301704]
[1772792755396,5.27039251,2067.9,2067.3,14.7331704]
[1772792755596,5.27039251,2067.9,2067.3,14.73676576]
[1772792757193,5.27039251,2067.9,2067.3,10.76259536]
[1772792757398,4.05802634,2067.9,2067.3,10.76259536]
[1772792759800,5.33021163,2067.9,2067.3,10.76259536]
[1772792760002,1.27218529,2067.8,2067.3,10.79259536]
[1772792760904,5.33065782,2067.9,2067.3,10.79259536]
[1772792761405,4.05802634,2067.9,2067.3,10.79259536]
[1772792761604,1.27263148,2068.1,2067.3,14.76676576]
[1772792761798,4.05802634,2068.0,2067.3,14.76676576]
[1772792762199,5.33109273,2068.0,2067.4,10.814]
[1772792763199,4.05802634,2068.0,2067.4,10.814]
[1772792763705,4.05802634,2068.0,2067.4,14.7881704]
[1772792764604,5.3215676,2068.0,2067.5,10.842]
[1772792765006,12.34289977,2068.0,2067.5,10.842]
[1772792766002,11.07935851,2068.0,2067.5,10.842]
[1772792768410,1.26400146,2068.1,2067.5,10.842]
[1772792768597,11.07935851,2068.0,2067.5,10.842]
[1772792768797,4.05802634,2068.0,2067.5,10.842]
[1772792769008,7.02133217,2067.9,2067.5,10.842]
[1772792770604,1.29243209,2068.3,2067.5,15.0580104]
[1772792771309,6.87134306,2068.2,2067.5,15.0580104]
[1772792771509,8.1641268,2068.2,2067.5,15.0580104]
[1772792771707,6.87134306,2068.1,2067.5,15.0580104]
[1772792771903,1.29278374,2068.0,2067.5,3.9741704]
[1772792772110,1.29278374,2068.0,2067.6,10.935]
[1772792772412,1.29278374,2067.8,2067.6,10.935]
[1772792772810,6.87134306,2067.7,2067.6,10.935]
[1772792773410,6.87134306,2067.7,2067.6,7.1868713]
[1772792774808,1.3040933,2068.3,2067.6,7.1868713]
[1772792775007,1.3040933,2068.3,2067.7,0.02878807]
[1772792775208,5.36211964,2068.2,2067.7,0.02878807]
[1772792775511,5.36211964,2068.2,2067.8,0.02878807]
[1772792775704,5.124715,2068.2,2067.8,0.02878807]
[1772792775908,3.67436133,2068.2,2067.8,0.02878807]
[1772792776104,1.30752021,2068.4,2068.0,0.50235828]
[1772792776105,0.00453353,2068.4,2068.0,0.50235828]
[1772792776310,1.30298668,2068.5,2068.2,0.50235828]
[1772792776709,1.30298668,2068.5,2068.1,10.994]
[1772792777012,1.30298668,2068.5,2068.1,11.54089461]
[1772792777217,1.30782318,2068.5,2068.1,11.54089461]
[1772792777711,0.0048365,2068.5,2068.2,0.84214819]
[1772792777908,1.26984013,2068.9,2068.4,0.84214819]
[1772792778104,1.26984013,2068.9,2068.5,11.84774394]
[1772792778506,1.26984013,2068.9,2068.6,0.82595655]
[1772792778709,1.22510161,2069.1,2068.6,0.82595655]
[1772792778913,0.00596095,2068.9,2068.6,0.82595655]
[1772792779107,0.00596095,2068.9,2068.6,4.80012695]
[1772792779308,0.00596095,2068.9,2068.6,0.82595655]
[1772792779912,1.23106256,2068.9,2068.6,0.82595655]
[1772792780611,0.00596095,2068.9,2068.6,0.82595655]
[1772792780809,0.00596095,2068.9,2068.3,0.24174]
[1772792780810,1.23106256,2068.9,2068.3,2.468]
[1772792781115,1.23106256,2068.9,2068.4,1.11646557]
[1772792784415,1.23106256,2068.9,2068.3,2.468]
[1772792785212,1.23106256,2068.9,2068.4,1.11646557]
[1772792785518,1.22510161,2069.7,2068.6,1.11646557]
[1772792785819,1.22510161,2069.6,2068.7,12.20946557]
[1772792786019,1.22510161,2069.6,2068.8,1.11646557]
[1772792786210,1.22510161,2069.5,2068.8,1.11646557]
[1772792786410,1.23029338,2069.5,2068.8,1.12004016]
[1772792786609,1.22510161,2069.3,2068.8,1.12004016]
[1772792787421,1.23029338,2069.5,2068.8,1.12004016]
[1772792787614,2.15589269,2069.4,2068.8,1.12004016]
[1772792787817,1.22510161,2069.4,2068.8,1.12004016]
[1772792793423,2.15589269,2069.4,2068.8,1.12004016]
[1772792793822,1.22510161,2069.4,2068.8,1.12004016]
[1772792796022,2.15589269,2069.4,2068.8,1.12004016]
[1772792796322,1.22510161,2069.4,2068.8,1.12004016]
[1772792796523,1.22510161,2069.4,2068.9,1.5926342]
[1772792797024,1.6476414,2069.3,2069.0,11.205]
[1772792797524,2.57843248,2069.2,2069.0,11.205]
[1772792797725,1.6476414,2069.4,2069.0,12.7976342]
[1772792801627,1.6476414,2069.4,2069.1,1.5926342]
[1772792801829,1.32842849,2069.4,2069.1,1.5926342]
[1772792804925,1.65283317,2069.5,2069.1,1.5926342]
[1772792805225,1.65283317,2069.5,2069.0,12.8736342]
[1772792805630,1.65283317,2069.5,2069.1,1.5926342]
[1772792811034,1.65283317,2069.5,2069.0,12.9166342]
[1772792811533,1.65283317,2069.5,2069.1,1.5926342]
[1772792812129,1.65283317,2069.5,2069.0,12.9226342]
[1772792812331,1.65283317,2069.5,2069.1,1.5926342]
[1772792813938,1.00363536,2070.1,2069.2,1.5926342]
[1772792814138,1.00363536,2070.1,2069.3,1.5926342]
[1772792814440,0.1700933,2069.7,2069.5,1.5926342]
[1772792814637,0.15851007,2069.7,2069.5,1.5926342]
[1772792815041,0.16370553,2069.7,2069.5,1.5926342]
[1772792815730,0.15851007,2069.6,2069.5,1.5926342]
[1772792816133,1.80615147,2069.6,2069.2,1.5926342]
[1772792816736,0.15851007,2069.4,2069.2,1.5926342]
[1772792817837,0.15851007,2069.3,2069.2,1.5926342]
[1772792818438,0.15851007,2069.3,2069.1,12.9426342]
[1772792818738,0.15851007,2069.2,2069.1,12.9426342]
[1772792818934,0.15851007,2069.2,2069.0,15.4246342]
[1772792819137,1.80615147,2069.2,2068.9,11.365]
[1772792819938,1.6476414,2069.0,2068.9,11.365]
[1772792820140,1.6476414,2069.0,2068.7,1.5926342]
[1772792820339,1.6476414,2069.0,2068.6,12.9656342]
[1772792820540,1.6476414,2069.0,2068.7,1.5926342]
[1772792820836,0.15851007,2068.9,2068.6,11.373]
[1772792821043,1.6476414,2068.8,2068.6,11.373]
[1772792821246,1.6476414,2068.8,2068.6,11.37907687]
[1772792821543,1.6476414,2068.8,2068.6,8.79485575]
[1772792822047,7.88718624,2069.4,2068.6,10.44888247]
[1772792822048,0.15851007,2068.7,2068.6,10.44888247]
[1772792822536,1.65720699,2068.9,2068.6,10.44888247]
[1772792824344,1.65720699,2068.9,2068.6,8.79485575]
[1772792824540,1.65720699,2068.9,2068.6,10.44888247]
[1772792827842,1.65720699,2069.3,2068.7,1.65402672]
[1772792828042,1.65720699,2069.3,2068.6,10.44888247]
[1772792828246,1.65720699,2069.3,2068.6,1.66010359]
[1772792829343,1.65720699,2069.2,2068.3,1.65402672]
[1772792830247,1.65720699,2069.2,2068.3,1.65894669]
[1772792830547,1.89885699,2069.2,2068.3,1.65894669]
[1772792837351,1.65720699,2069.2,2068.3,1.65894669]
[1772792839856,1.65720699,2069.0,2068.3,0.00491997]
[1772792840254,1.65720699,2069.0,2068.3,1.65894669]
[1772792840455,1.65720699,2069.0,2068.3,0.00491997]
[1772792840961,1.65720699,2069.0,2068.3,1.65894669]
[1772792844161,1.65720699,2068.8,2067.9,3.97034497]
[1772792844357,1.65720699,2068.8,2067.9,1.653345]
[1772792845161,1.65720699,2068.8,2067.9,1.65758135]
[1772792845362,1.65720699,2068.7,2067.9,1.65758135]
[1772792845562,1.65720699,2068.7,2067.9,0.00423635]
[1772792845965,1.65720699,2068.5,2067.9,0.00423635]
[1772792846366,1.65720699,2068.5,2067.6,5.51911616]
[1772792846560,1.65720699,2068.5,2067.6,1.54877119]
[1772792847463,1.65720699,2068.5,2067.6,1.55235582]
[1772792847964,1.65720699,2068.5,2067.6,0.00358463]
[1772792848263,1.65720699,2068.3,2067.6,0.00358463]
[1772792848464,7.99220699,2068.3,2067.6,0.00358463]
[1772792848660,1.65720699,2068.2,2067.6,0.00358463]
[1772792848864,1.66239698,2068.2,2067.6,0.00358463]
[1772792850663,1.66239698,2068.2,2067.2,5.34492143]
[1772792850963,1.66239698,2068.2,2067.2,1.37457646]
[1772792851657,1.66239698,2068.2,2067.2,1.38020469]
[1772792857157,1.02602302,2068.1,2067.2,1.38020469]
[1772792858661,1.02602302,2067.8,2066.9,3.97034497]
[1772792858966,1.02602302,2067.1,2066.7,0.92111719]
[1772792859670,1.02602302,2067.1,2066.7,0.92539779]
[1772792859871,1.02602302,2067.4,2067.0,0.87535015]
[1772792861271,1.02602302,2067.4,2066.9,0.74651319]
[1772792862571,1.02602302,2067.4,2066.7,0.70729308]
[1772792862769,1.02602302,2067.0,2066.2,0.64813398]
[1772792863773,1.02602302,2067.0,2066.2,0.65220597]
[1772792863964,1.02602302,2067.0,2066.4,0.60630155]
[1772792864170,1.02602302,2067.0,2066.6,0.56725665]
[1772792864466,1.02602302,2067.0,2066.3,1.58804642]
[1772792864665,1.02602302,2067.0,2066.4,0.52973414]
[1772792867977,1.02602302,2067.0,2066.3,1.58804642]
[1772792868168,1.02602302,2067.0,2066.3,1.93269595]
[1772792868572,1.02602302,2067.0,2066.4,0.34425196]
[1772792871068,1.02602302,2067.0,2066.2,0.26745058]
[1772792872180,1.02602302,2067.0,2066.2,0.19416561]
[1772792872675,1.02602302,2066.8,2065.9,4.16996137]
[1772792872870,1.02602302,2066.8,2065.9,0.19385151]
[1772792873872,1.02602302,2066.8,2065.9,0.19924769]
[1772792878383,1.02602302,2066.8,2066.0,0.07081129]
[1772792881686,1.02602302,2066.8,2065.9,2.53145488]
[1772792882477,0.56941727,2066.6,2065.9,0.00539618]
[1772792882682,0.57485847,2066.6,2065.9,0.00539618]
[1772792882887,0.57485847,2066.6,2065.5,0.05931998]
[1772792883786,0.57485847,2066.6,2065.5,0.06528047]
[1772792884384,0.57485847,2066.6,2065.7,0.06471616]
[1772792889286,0.56828972,2066.4,2065.6,0.06157508]
[1772792891691,0.56828972,2066.4,2065.8,0.03732609]
[1772792892491,0.56828972,2066.4,2065.9,1.62723789]
[1772792894086,0.56828972,2066.4,2065.7,1.5899118]
[1772792894692,0.56828972,2066.4,2065.7,1.62324376]
[1772792897990,0.58065588,2066.2,2065.5,0.00596049]
[1772792898395,0.58065588,2066.2,2065.5,0.04280325]
[1772792898701,0.58065588,2066.2,2065.5,0.00596049]
[1772792900988,1.5899118,2066.1,2065.5,0.00596049]
[1772792901191,0.57307025,2066.0,2065.1,11.42901401]
[1772792901391,0.57307025,2066.0,2065.2,0.0579745]
[1772792902297,0.57307025,2066.0,2065.2,0.06300488]
[1772792904802,0.57307025,2066.0,2065.2,0.00503038]
[1772792907408,0.56699174,2065.8,2065.2,0.00503038]
[1772792910007,0.56699174,2065.8,2065.2,1.59494218]
[1772792910211,0.56699174,2065.8,2065.2,0.00503038]
[1772792914016,0.56699174,2065.8,2065.3,0.09912303]
[1772792915116,0.56699174,2065.8,2065.2,1.69466732]
[1772792915815,0.56699174,2065.8,2065.3,0.09972514]
[1772792916614,0.56699174,2065.8,2065.2,1.59494218]
[1772792918520,0.56699174,2065.8,2065.2,0.10375087]
[1772792918717,0.59643138,2066.4,2065.4,0.58068272]
[1772792919817,0.59643138,2066.4,2065.5,0.58068272]
[1772792920017,0.59643138,2066.4,2065.6,0.58068272]
[1772792920620,0.59643138,2066.4,2065.7,0.58068272]
[1772792921021,0.59643138,2066.4,2065.8,0.58068272]
[1772792931822,0.60187258,2066.6,2065.9,0.58068272]
[1772792940331,0.59643138,2066.8,2066.1,0.58068272]
[1772792940529,0.59643138,2066.8,2066.2,0.58068272]
[1772792941430,0.60244488,2066.8,2066.2,0.58068272]
[1772792942032,0.60244488,2066.8,2066.0,0.56471773]
[1772792942236,0.60244488,2066.8,2065.9,2.468]
[1772792942544,0.60244488,2066.8,2065.9,3.03271773]
[1772792943339,0.60244488,2066.8,2066.0,0.56471773]
[1772792950142,0.60244488,2066.8,2066.0,6.56587982]
[1772792950341,0.60244488,2066.8,2066.1,0.56471773]
[1772792952141,0.60244488,2066.8,2066.2,0.56471773]
[1772792960644,0.5729534,2067.1,2066.4,0.56471773]
[1772792960839,0.5729534,2067.1,2066.5,0.56471773]
[1772792961748,0.57799744,2067.1,2066.5,0.56471773]
[1772792962348,0.00504404,2067.1,2066.5,0.56471773]
[1772792962542,0.00504404,2067.1,2066.7,0.56471773]
[1772792962746,0.5729534,2067.3,2066.7,0.56471773]
[1772792963749,0.57872716,2067.3,2066.7,0.56877876]
[1772792964847,0.24181,2067.8,2066.7,0.56877876]
[1772792964848,0.5729534,2067.8,2067.1,0.56471773]
[1772792965243,0.5729534,2067.8,2066.9,0.56471773]
[1772792965448,0.5729534,2068.0,2067.2,0.56471773]
[1772792965643,0.5729534,2068.0,2067.1,17.41216209]
[1772792965644,0.5729534,2068.8,2067.8,0.56471773]
[1772792965942,0.5729534,2068.7,2067.7,11.414]
[1772792966142,0.5729534,2068.7,2067.3,7.45520599]
[1772792966143,0.5729534,2068.7,2067.8,0.56471773]
[1772792966348,0.5729534,2068.7,2067.5,0.56471773]
[1772792966651,0.57717487,2068.8,2068.0,0.56471773]
[1772792967645,0.03696976,2069.2,2068.0,0.56471773]
[1772792967848,0.03696976,2069.2,2067.9,11.426]
[1772792967849,0.04914347,2070.1,2068.8,0.58058036]
[1772792968151,0.03696976,2070.0,2069.1,0.58058036]
[1772792968354,0.03696976,2069.8,2068.8,0.58058036]
[1772792968754,0.04252972,2069.8,2068.8,0.00522212]
[1772792969054,0.04252972,2069.8,2068.4,11.46]
[1772792969055,0.04069721,2069.5,2068.5,0.57871663]
[1772792969955,0.04069721,2069.5,2068.5,0.58303263]
[1772792971965,0.04036744,2069.2,2068.5,0.004316]
[1772792972461,0.04042807,2068.8,2067.9,0.57856026]
[1772792972763,0.04042807,2068.6,2067.9,0.57856026]
[1772792973354,0.04042807,2068.6,2067.9,0.58219556]
[1772792973754,0.04042807,2068.6,2067.9,0.0036353]
[1772792974860,0.04042807,2068.6,2067.9,0.58193272]
[1772792975363,0.04042807,2068.6,2067.9,0.0036353]
[1772792975560,0.04042807,2068.6,2067.6,0.57829742]
[1772792976266,5.94529,2069.0,2067.6,0.57829742]
[1772792976267,0.03731844,2068.4,2067.6,0.57829742]
[1772792976766,0.03731844,2068.4,2067.6,0.58316142]
[1772792976961,0.03731844,2068.4,2067.6,0.004864]
[1772792977764,0.01016648,2068.2,2067.6,0.004864]
[1772792977963,0.01016648,2068.2,2067.4,0.59369105]
[1772792977964,0.01016648,2068.1,2067.4,0.59369105]
[1772792978161,0.01016648,2067.9,2066.7,0.59369105]
[1772792978868,0.01016648,2067.9,2066.7,0.59754526]
[1772792980560,0.0042626,2068.2,2067.0,0.60417971]
[1772792980865,0.0042626,2068.2,2067.2,0.60643747]
[1772792984271,7.88718624,2068.8,2067.4,0.60588439]
[1772792984463,6.57966,2069.2,2067.6,0.60375309]
[1772792985068,6.58476569,2069.2,2067.6,0.60375309]
[1772792985273,0.2417,2068.8,2067.6,0.60375309]
[1772792985773,6.34310569,2069.2,2067.6,0.60375309]
[1772792986568,0.00510569,2069.2,2067.8,0.60357343]
[1772792986869,0.00510569,2069.2,2068.0,0.60185687]
[1772792988972,0.00510569,2069.2,2068.2,0.60406467]
[1772792989168,0.00510569,2069.2,2068.2,0.60825022]
[1772792990674,0.00510569,2069.2,2068.4,0.60406467]
[1772792993074,0.00321281,2069.7,2068.6,0.59716789]
[1772792994174,0.00894167,2069.7,2068.6,0.59716789]
[1772792994375,0.00321281,2069.6,2068.6,0.59716789]
[1772793003081,0.00570208,2069.4,2068.6,0.59716789]
[1772793003283,0.00570208,2069.2,2068.6,0.59716789]
[1772793003588,0.18997552,2069.0,2068.3,0.56970315]
[1772793004386,0.24166,2069.1,2068.3,0.56970315]
[1772793004586,0.43163552,2069.1,2068.3,0.56970315]
[1772793004776,0.22572798,2069.0,2068.3,0.56970315]
[1772793005180,6.56072798,2069.2,2068.3,0.56970315]
[1772793005987,0.22572798,2069.1,2068.3,0.56970315]
[1772793006385,0.22572798,2069.5,2068.3,0.56970315]
[1772793006583,0.22572798,2069.3,2068.3,0.56970315]
[1772793006987,0.22803434,2069.1,2068.3,0.56970315]
[1772793009685,0.22453946,2069.3,2068.3,0.56970315]
[1772793009890,6.55953946,2069.5,2068.3,0.56970315]
[1772793010091,0.22453946,2069.4,2068.3,0.56970315]
[1772793011889,0.24163,2069.3,2068.3,0.56970315]
[1772793012092,0.23170825,2069.2,2068.3,0.56970315]
[1772793012291,0.23170825,2069.0,2068.2,0.00418555]
[1772793012493,0.58614614,2068.8,2068.2,0.00418555]
[1772793012893,0.58614614,2068.8,2068.1,0.56970315]
[1772793013993,0.58614614,2068.8,2068.1,0.57432607]
[1772793014193,0.58614614,2069.1,2068.1,0.57432607]
[1772793016194,0.24167,2069.0,2068.1,0.57432607]
[1772793016491,0.58614614,2068.9,2068.1,0.57432607]
[1772793017794,0.58614614,2068.7,2068.1,0.57432607]
[1772793018394,0.58614614,2068.7,2068.1,0.00462292]
[1772793019193,0.58614614,2068.5,2067.7,0.56970315]
[1772793020096,0.58614614,2068.5,2067.7,0.57403176]
[1772793020999,0.58614614,2068.8,2067.7,0.57403176]
[1772793021297,0.58614614,2068.9,2067.8,0.56970315]
[1772793024800,0.51638278,2068.4,2067.6,0.56970315]
[1772793025099,2.48700718,2068.5,2067.6,0.56970315]
[1772793025100,0.51638278,2068.2,2067.6,0.56970315]
[1772793025490,0.51638278,2068.2,2066.8,48.30110761]
[1772793025491,0.58614614,2068.0,2066.9,0.56970315]
[1772793026094,0.58964289,2068.0,2066.9,0.57543289]
[1772793026705,0.58614614,2067.9,2066.9,0.57543289]
[1772793027895,0.58614614,2067.7,2066.9,0.57543289]
[1772793029901,0.58614614,2067.3,2066.6,0.56970315]
[1772793030905,0.58614614,2067.3,2066.6,0.00418978]
[1772793031402,0.58614614,2067.3,2065.8,0.56970315]
[1772793031403,0.58614614,2067.2,2065.8,0.56970315]
[1772793032400,0.58614614,2067.2,2065.8,0.57480093]
[1772793033499,0.58834472,2067.0,2065.8,0.57480093]
[1772793035205,0.58834472,2066.9,2065.8,0.57480093]
[1772793036198,0.58834472,2067.2,2065.8,0.57480093]
[1772793039506,0.58834472,2067.4,2066.0,0.54077052]
[1772793039810,0.58834472,2067.4,2065.9,2.24526718]
[1772793039811,0.58834472,2067.4,2066.2,0.54077052]
[1772793043912,0.58834472,2067.4,2066.4,0.54077052]
[1772793046016,0.58834472,2067.2,2066.4,0.54077052]
[1772793051422,0.58834472,2067.0,2066.4,0.54077052]
[1772793052916,0.58834472,2067.2,2066.4,0.54077052]
[1772793056933,0.58834472,2067.5,2066.4,0.54077052]
[1772793057325,0.58834472,2067.5,2066.5,0.54077052]
[1772793058632,0.58834472,2067.5,2066.6,0.54077052]
[1772793059132,0.58834472,2067.6,2066.7,0.54077052]
[1772793060029,0.58834472,2067.6,2065.9,0.59886355]
[1772793060030,0.58834472,2067.1,2065.9,0.59886355]
[1772793060228,6.6217388,2067.0,2065.9,0.59886355]
[1772793060428,0.4288688,2066.9,2065.9,0.59886355]
[1772793060631,0.42914934,2066.8,2065.9,0.59886355]
[1772793060833,0.2419,2067.0,2065.9,0.59886355]
[1772793061028,0.42897478,2066.9,2065.9,0.59886355]
[1772793061234,0.42897478,2066.8,2065.9,0.59886355]
[1772793061432,5.58354811,2066.7,2065.9,0.59886355]
[1772793061629,4.29498099,2067.0,2065.9,0.59886355]
[1772793061829,6.01237768,2066.9,2065.9,0.59886355]
[1772793062127,6.01237768,2066.8,2065.9,0.59886355]
[1772793062434,5.58354811,2066.7,2065.9,0.59886355]
[1772793062633,0.01926198,2066.9,2065.9,0.59886355]
[1772793062834,0.01926198,2066.7,2065.9,0.59886355]
[1772793063231,0.01926198,2066.5,2065.8,0.00509778]
[1772793063435,0.02510177,2066.5,2065.8,0.59415741]
[1772793063733,0.01926198,2066.4,2065.8,0.59415741]
[1772793066839,0.01926198,2066.4,2065.8,0.00509778]
[1772793068336,0.01926198,2066.4,2065.8,0.5857963]
[1772793068537,0.00583979,2066.5,2065.8,0.5857963]
[1772793068738,0.04738672,2066.5,2065.8,0.5857963]
[1772793069539,0.00583979,2066.5,2065.8,0.5857963]
[1772793070232,0.04154693,2067.0,2065.8,0.5857963]
[1772793070437,0.04738672,2067.1,2065.8,0.5857963]
[1772793070632,6.58289,2067.2,2065.8,0.5857963]
[1772793071136,6.58700017,2067.2,2065.8,0.5857963]
[1772793071338,0.00411017,2067.2,2065.9,0.57057528]
[1772793071539,0.00411017,2067.2,2066.1,0.57057528]
[1772793072844,0.07189411,2067.2,2066.1,0.57057528]
[1772793073343,0.06778394,2067.0,2066.1,0.57057528]
[1772793077745,0.24189,2067.1,2066.1,0.57057528]
[1772793078542,0.00411017,2067.2,2066.1,0.57057528]
[1772793079141,0.24184,2067.6,2066.1,0.57057528]
[1772793079444,5.7894227,2067.5,2066.1,0.57057528]
[1772793079644,0.31825847,2067.6,2066.1,0.57057528]
[1772793079846,0.31825847,2067.6,2066.2,0.56491601]
[1772793080145,5.78912648,2067.5,2066.2,0.56491601]
[1772793080345,0.32169215,2067.6,2066.2,0.56491601]
[1772793080540,0.00343368,2067.6,2066.3,0.56491601]
[1772793080744,0.00343368,2067.6,2066.5,0.56491601]
[1772793082848,0.07824212,2068.0,2066.7,0.56491601]
[1772793083150,5.78392702,2067.9,2066.7,0.56491601]
[1772793083445,0.07824212,2068.0,2066.7,0.56491601]
[1772793083645,5.78191559,2067.9,2066.7,0.56491601]
[1772793083844,0.00381917,2067.9,2066.7,0.56491601]
[1772793084048,0.09035974,2067.9,2066.7,0.56491601]
[1772793084349,0.24181,2067.8,2066.7,0.56491601]
[1772793084540,0.32835057,2067.8,2066.7,0.56491601]
[1772793085444,0.09333016,2067.7,2066.7,0.56491601]
[1772793086345,0.24181,2067.8,2066.7,0.56491601]
[1772793086547,0.33514016,2067.8,2066.7,0.56491601]
[1772793086742,0.00381917,2067.9,2066.8,0.56491601]
[1772793088350,0.09879035,2067.9,2066.8,0.56491601]
[1772793088956,0.10020065,2067.8,2066.8,0.56491601]
[1772793090756,0.10010675,2067.6,2066.8,0.56491601]
[1772793091352,0.10010675,2067.4,2066.8,0.56491601]
[1772793095653,0.34109806,2067.5,2066.8,0.56491601]
[1772793096559,0.09924806,2067.4,2066.8,0.56491601]
[1772793099165,0.37832763,2067.2,2066.0,0.57113141]
[1772793099363,0.37832763,2067.2,2066.1,0.57113141]
[1772793102160,0.24182,2067.7,2066.5,0.57113141]
[1772793102361,0.37743884,2067.5,2066.7,0.57113141]
[1772793102866,0.37810403,2067.7,2066.7,0.57113141]
[1772793103061,0.3819232,2067.9,2066.7,0.57113141]
[1772793103261,0.00381917,2067.9,2066.7,0.57113141]
[1772793103460,0.00381917,2067.9,2066.7,3.28106141]
[1772793103663,0.00381917,2067.9,2066.8,0.57113141]
[1772793105968,0.36547829,2067.9,2066.8,0.57113141]
[1772793106164,6.15019912,2067.8,2066.8,0.57113141]
[1772793106360,0.00381917,2067.9,2066.8,0.57113141]
[1772793106769,0.00381917,2067.9,2066.9,0.57113141]
[1772793107564,4.05308099,2068.3,2067.1,0.57113141]
[1772793107565,0.42053661,2068.3,2067.1,0.57113141]
[1772793107760,6.09155572,2068.2,2067.1,0.57113141]
[1772793107973,0.42053661,2068.3,2067.3,0.57113141]
[1772793108271,6.09155572,2068.2,2067.3,0.57113141]
[1772793108570,0.00403507,2068.2,2067.4,0.57113141]
[1772793110469,0.42936054,2068.2,2067.4,0.57113141]
[1772793111073,0.00403507,2068.2,2067.4,0.57113141]
[1772793112678,0.429697,2068.2,2067.4,0.57113141]
[1772793113973,0.42883677,2068.0,2067.3,0.57627149]
[1772793118276,0.42583406,2067.9,2067.3,0.57627149]
[1772793118472,0.24179,2067.8,2066.9,0.57113141]
[1772793118778,0.42069398,2067.6,2066.9,0.57113141]
[1772793118980,0.66235878,2067.8,2066.9,0.57113141]
[1772793119276,6.08620977,2067.7,2066.9,0.57113141]
[1772793119477,0.66235878,2067.8,2066.9,0.57612733]
[1772793120277,4.47364977,2068.1,2066.9,0.57612733]
[1772793120478,6.50537042,2068.0,2066.9,0.57612733]
[1772793120679,0.42056878,2067.8,2066.9,0.57612733]
[1772793121973,0.2418,2067.7,2066.9,0.57612733]
[1772793122280,0.52570007,2067.4,2066.9,0.00499592]
[1772793122778,0.52570007,2067.4,2066.9,0.5702544]
[1772793123474,0.52570007,2067.4,2066.9,0.00499592]
[1772793123874,0.52570007,2067.4,2066.9,0.5702544]
[1772793124179,0.52185094,2067.2,2066.3,0.56525848]
[1772793125082,0.44934453,2067.4,2066.3,0.57026489]
[1772793125272,0.44934453,2067.5,2066.3,0.57026489]
[1772793125477,6.026844,2067.4,2066.3,0.57026489]
[1772793125681,0.44934453,2067.5,2066.3,0.57026489]
[1772793125880,6.02673786,2067.4,2066.3,0.57026489]